fUST/lending_fUST_20250221
["ID","MTS","AMOUNT","RATE_DAILY","PERIOD"]
[353836235,1740085839433,-846.01,0.00013698,2]
[353836236,1740085839442,-500.0,0.00013698,2]
[353836237,1740085839452,-500.0,0.00013698,2]
[353836238,1740085839461,-500.0,0.00013698,2]
[353836239,1740085839471,-500.0,0.00013698,2]
[353836240,1740085839480,-1250.1,0.00013698,2]
[353836241,1740085839489,-500.0,0.00013698,2]
[353836242,1740085839498,-500.0,0.00013698,2]
[353836243,1740085839507,-610.98,0.00013698,2]
[353836244,1740085839516,-500.0,0.00013698,2]
[353836245,1740085839525,-500.0,0.00013698,2]
[353836246,1740085839535,-500.0,0.00013698,2]
[353836247,1740085839545,-500.0,0.00013698,2]
[353836248,1740085839554,-500.0,0.00013698,2]
[353836249,1740085839563,-500.0,0.00013698,2]
[353836250,1740085839573,-500.0,0.00013698,2]
[353836251,1740085839583,-500.0,0.00013698,2]
[353836252,1740085839592,-500.0,0.00013698,2]
[353836253,1740085839601,-503.83052297,0.00013698,2]
[353836254,1740085839611,-500.0,0.00013698,2]
[353836255,1740085839620,-500.0,0.00013698,2]
[353836256,1740085839629,-500.0,0.00013698,2]
[353836257,1740085839639,-478.3062698,0.00013698,2]
[353836258,1740085839650,-500.0,0.00013698,2]
[353836259,1740085839660,-500.0,0.00013698,2]
[353836260,1740085839669,-475.42481455,0.00013698,2]
[353836261,1740085839678,-1808.03,0.00013698,2]
[353836262,1740085839687,-597.65,0.00013698,2]
[353836263,1740085839697,-263.2950686,0.00013698,2]
[353836264,1740085839707,-4790.23,0.00013698,2]
[353836265,1740085839717,-500.0,0.00013698,2]
[353836266,1740085839727,-500.0,0.00013698,2]
[353836267,1740085839736,-504.39476211,0.00013698,2]
[353836268,1740085839746,-1090.83,0.00013698,2]
[353836269,1740085839755,-500.0,0.00013698,2]
[353836270,1740085839765,-500.0,0.00013698,2]
[353836271,1740085839774,-500.0,0.00013698,2]
[353836272,1740085839783,-500.0,0.00013698,2]
[353836273,1740085839792,-500.0,0.00013698,2]
[353836274,1740085839800,-12831.87,0.00013698,2]
[353836275,1740085839809,-233.91922336,0.00013698,2]
[353836276,1740085839819,-500.0,0.00013698,2]
[353836277,1740085839828,-500.0,0.00013698,2]
[353836278,1740085839837,-500.0,0.00013698,2]
[353836279,1740085839847,-506.38,0.00013698,2]
[353836280,1740085839858,-500.0,0.00013698,2]
[353836281,1740085839868,-1483.65,0.00013698,2]
[353836282,1740085839878,-1767.81,0.00013698,2]
[353836283,1740085839888,-500.0,0.00013698,2]
[353836284,1740085839898,-500.0,0.00013698,2]
[353836285,1740085839908,-1401.44,0.00013698,2]
[353836286,1740085839917,-500.0,0.00013698,2]
[353836287,1740085839927,-500.0,0.00013698,2]
[353836288,1740085839936,-569.2,0.00013698,2]
[353836289,1740085839946,-613.73,0.00013698,2]
[353836290,1740085839956,-500.0,0.00013698,2]
[353836291,1740085839967,-500.0,0.00013698,2]
[353836292,1740085839976,-500.0,0.00013698,2]
[353836293,1740085839985,-500.0,0.00013698,2]
[353836294,1740085839995,-501.14196905,0.00013698,2]
[353836295,1740085840004,-2967.35,0.00013698,2]
[353836296,1740085840013,-500.0,0.00013698,2]
[353836297,1740085840022,-500.00569627,0.00013698,2]
[353836298,1740085840032,-500.0,0.00013698,2]
[353836299,1740085840041,-1487.5,0.00013698,2]
[353836300,1740085840050,-5698.36,0.00013698,2]
[353836301,1740085840059,-500.0,0.00013698,2]
[353836302,1740085840069,-503.59163747,0.0001378,2]
[353836303,1740085840078,-500.0,0.0001378,2]
[353836304,1740085840088,-500.0,0.0001378,2]
[353836305,1740085840097,-500.0,0.0001378,2]
[353836306,1740085840106,-500.0,0.0001378,2]
[353836307,1740085840116,-500.0,0.0001378,2]
[353836308,1740085840125,-500.0,0.0001378,2]
[353836309,1740085840135,-500.0,0.0001378,2]
[353836310,1740085840144,-500.0,0.0001378,2]
[353836311,1740085840153,-500.0,0.0001378,2]
[353836312,1740085840163,-500.0,0.0001378,2]
[353836313,1740085840172,-500.0,0.0001378,2]
[353836314,1740085840181,-500.0,0.0001378,2]
[353836315,1740085840192,-500.0,0.0001378,2]
[353836316,1740085840201,-500.0,0.0001378,2]
[353836317,1740085840212,-500.0,0.0001378,2]
[353836318,1740085840222,-500.0,0.0001378,2]
[353836319,1740085840231,-500.0,0.0001378,2]
[353836320,1740085840240,-500.0,0.0001378,2]
[353836321,1740085840250,-500.0,0.0001378,2]
[353836322,1740085840259,-902.1,0.0001378,2]
[353836323,1740085840268,-506.55284044,0.0001378,2]
[353836324,1740085840278,-500.0,0.0001378,2]
[353836325,1740085840288,-500.0,0.0001378,2]
[353836326,1740085840297,-500.0,0.0001378,2]
[353836327,1740085840307,-500.0,0.0001378,2]
[353836328,1740085840316,-329.42788432,0.0001378,2]
[353836329,1740085840325,-500.0,0.0001378,2]
[353836330,1740085840335,-500.0,0.0001378,2]
[353836331,1740085840344,-500.0,0.0001378,2]
[353836332,1740085840354,-500.0,0.0001378,2]
[353836333,1740085840364,-506.13785597,0.0001378,2]
[353836334,1740085840373,-500.0,0.0001378,2]
[353836335,1740085840382,-630.41,0.0001378,2]
[353836336,1740085840391,-500.0,0.0001378,2]
[353836337,1740085840400,-500.0,0.0001378,2]
[353836338,1740085840410,-500.0,0.0001378,2]
[353836339,1740085840420,-500.0,0.0001378,2]
[353836340,1740085840429,-500.0,0.0001378,2]
[353836342,1740085840438,-500.0,0.0001378,2]
[353836344,1740085840447,-500.0,0.0001378,2]
[353836345,1740085840457,-307.51127372,0.0001378,2]
[353836346,1740085840467,-500.0,0.0001378,2]
[353836347,1740085840477,-500.0,0.0001378,2]
[353836348,1740085840486,-500.0,0.0001378,2]
[353836350,1740085840496,-500.0,0.0001378,2]
[353836352,1740085840506,-500.0,0.0001378,2]
[353836354,1740085840516,-772.49,0.0001378,2]
[353836355,1740085840526,-873.43,0.0001378,2]
[353836357,1740085840536,-325.56346102,0.0001378,2]
[353836359,1740085840546,-500.0,0.0001378,2]
[353836361,1740085840556,-500.0,0.0001378,2]
[353836363,1740085840565,-500.0,0.0001378,2]
[353836364,1740085840574,-500.0,0.0001378,2]
[353836366,1740085840584,-500.0,0.0001378,2]
[353836368,1740085840594,-500.0,0.0001378,2]
[353836370,1740085840604,-500.0,0.0001378,2]
[353836371,1740085840613,-500.0,0.0001378,2]
[353836372,1740085840623,-500.0,0.0001378,2]
[353836374,1740085840632,-500.0,0.0001378,2]
[353836375,1740085840642,-500.0,0.0001378,2]
[353836376,1740085840651,-761.3,0.0001378,2]
[353836377,1740085840661,-500.0,0.0001378,2]
[353836378,1740085840671,-500.0,0.0001378,2]
[353836379,1740085840680,-500.0,0.0001378,2]
[353836380,1740085840690,-500.0,0.0001378,2]
[353836381,1740085840699,-561.19,0.0001378,2]
[353836382,1740085840710,-500.0,0.0001378,2]
[353836383,1740085840720,-500.0,0.0001378,2]
[353836384,1740085840730,-500.0,0.0001378,2]
[353836385,1740085840739,-507.41425606,0.0001378,2]
[353836387,1740085840749,-513.62697231,0.0001378,2]
[353836389,1740085840759,-500.0,0.0001378,2]
[353836391,1740085840769,-500.0,0.0001378,2]
[353836392,1740085840779,-501.98306001,0.0001378,2]
[353836394,1740085840788,-518.62,0.0001378,2]
[353836396,1740085840797,-480.6041164,0.0001378,2]
[353836398,1740085840807,-500.0,0.0001378,2]
[353836400,1740085840816,-500.0,0.0001378,2]
[353836402,1740085840826,-500.0,0.0001378,2]
[353836403,1740085840836,-500.0,0.0001378,2]
[353836406,1740085840846,-500.0,0.0001378,2]
[353836407,1740085840856,-500.0,0.0001378,2]
[353836409,1740085840868,-500.0,0.0001378,2]
[353836411,1740085840877,-500.0,0.0001378,2]
[353836413,1740085840887,-500.0,0.0001378,2]
[353836415,1740085840896,-500.0,0.0001378,2]
[353836418,1740085840908,-500.0,0.0001378,2]
[353836419,1740085840918,-500.0,0.0001378,2]
[353836421,1740085840928,-12219.87,0.0001378,2]
[353836423,1740085840939,-500.0,0.0001378,2]
[353836425,1740085840950,-3050.27,0.0001378,2]
[353836427,1740085840959,-404.48,0.0001378,2]
[353836428,1740085840970,-500.0,0.0001378,2]
[353836429,1740085840979,-499.37484569,0.0001378,2]
[353836430,1740085840990,-500.0,0.0001378,2]
[353836431,1740085841000,-771.85,0.0001378,2]
[353836432,1740085841009,-500.0,0.0001378,2]
[353836433,1740085841019,-500.0,0.0001378,2]
[353836434,1740085841030,-500.0,0.0001378,2]
[353836435,1740085841040,-883.99,0.0001378,2]
[353836436,1740085841050,-500.0,0.0001378,2]
[353836437,1740085841059,-546.01,0.0001378,2]
[353836438,1740085841070,-500.0,0.0001378,2]
[353836439,1740085841080,-503.01930446,0.0001378,2]
[353836440,1740085841090,-2362.88,0.0001378,2]
[353836441,1740085841099,-500.0,0.0001378,2]
[353836442,1740085841109,-500.0,0.0001378,2]
[353836443,1740085841119,-33637.8,0.0001378,2]
[353836444,1740085841129,-675.8,0.0001378,2]
[353836445,1740085841138,-906.49,0.0001378,2]
[353836446,1740085841147,-500.0,0.0001378,2]
[353836447,1740085841155,-500.0,0.0001378,2]
[353836448,1740085841165,-1881.99,0.0001378,2]
[353836449,1740085841175,-500.0,0.0001378,2]
[353836450,1740085841184,-2460.54,0.0001378,2]
[353836451,1740085841194,-940.83,0.0001378,2]
[353836452,1740085841204,-964.32,0.0001378,2]
[353836453,1740085841214,-5336.19,0.0001378,2]
[353836454,1740085841223,-509.3,0.0001378,2]
[353836455,1740085841233,-500.0,0.0001378,2]
[353836456,1740085841242,-500.0,0.0001378,2]
[353836457,1740085841252,-500.0,0.0001378,2]
[353836458,1740085841261,-500.0,0.0001378,2]
[353836459,1740085841271,-500.0,0.0001378,2]
[353836460,1740085841280,-500.0,0.0001378,2]
[353836461,1740085841290,-500.0,0.0001378,2]
[353836462,1740085841299,-500.0,0.0001378,2]
[353836463,1740085841309,-500.0,0.0001378,2]
[353836464,1740085841320,-502.21326011,0.0001378,2]
[353836465,1740085841329,-3128.08,0.0001378,2]
[353836466,1740085841339,-500.0,0.0001378,2]
[353836467,1740085841348,-500.0,0.0001378,2]
[353836468,1740085841358,-500.0,0.0001378,2]
[353836469,1740085841368,-500.0,0.0001378,2]
[353836470,1740085841377,-500.0,0.0001378,2]
[353836471,1740085841387,-1818.98,0.0001378,2]
[353836472,1740085841397,-517.69,0.0001378,2]
[353836473,1740085841408,-500.0,0.0001378,2]
[353836474,1740085841418,-500.0,0.0001378,2]
[353836475,1740085841428,-500.0,0.0001378,2]
[353836476,1740085841438,-2771.81,0.0001378,2]
[353836477,1740085841447,-1352.82,0.0001378,2]
[353836478,1740085841457,-500.0,0.0001378,2]
[353836479,1740085841466,-500.0,0.0001378,2]
[353836480,1740085841475,-501.82936904,0.0001378,2]
[353836481,1740085841484,-500.0,0.0001378,2]
[353836482,1740085841494,-500.0,0.0001378,2]
[353836483,1740085841504,-1081.46,0.0001378,2]
[353836484,1740085841513,-500.0,0.0001378,2]
[353836485,1740085841523,-846.01,0.0001378,2]
[353836486,1740085841533,-500.0,0.0001378,2]
[353836487,1740085841542,-500.0,0.0001378,2]
[353836488,1740085841551,-1250.1,0.0001378,2]
[353836489,1740085841560,-500.0,0.0001378,2]
[353836490,1740085841570,-500.0,0.0001378,2]
[353836491,1740085841580,-610.98,0.0001378,2]
[353836492,1740085841589,-500.0,0.0001378,2]
[353836493,1740085841599,-500.0,0.0001378,2]
[353836494,1740085841607,-500.0,0.0001378,2]
[353836495,1740085841616,-211.09352973,0.0001378,2]
[353836496,1740085841626,-500.0,0.0001378,2]
[353836497,1740085841636,-500.0,0.0001378,2]
[353836498,1740085841646,-500.0,0.0001378,2]
[353836499,1740085841656,-500.0,0.0001378,2]
[353836500,1740085841666,-500.0,0.0001378,2]
[353836501,1740085841675,-500.0,0.0001378,2]
[353836502,1740085841685,-500.0,0.0001378,2]
[353836503,1740085841695,-500.0,0.0001378,2]
[353836504,1740085841705,-1808.03,0.0001378,2]
[353836505,1740085841716,-597.65,0.0001378,2]
[353836506,1740085841726,-4790.23,0.0001378,2]
[353836507,1740085841736,-378.3472983,0.0001378,2]
[353836508,1740085841746,-1090.83,0.0001378,2]
[353836509,1740085841755,-500.0,0.0001378,2]
[353836510,1740085841765,-500.0,0.0001378,2]
[353836511,1740085841775,-500.0,0.0001378,2]
[353836512,1740085841784,-500.0,0.0001378,2]
[353836513,1740085841794,-12831.87,0.0001378,2]
[353836514,1740085841804,-500.0,0.0001378,2]
[353836515,1740085841814,-500.0,0.0001378,2]
[353836516,1740085841824,-500.0,0.0001378,2]
[353836517,1740085841834,-506.38,0.0001378,2]
[353836518,1740085841843,-500.0,0.0001378,2]
[353836519,1740085841852,-1483.65,0.0001378,2]
[353836520,1740085841866,-1767.81,0.0001378,2]
[353836521,1740085841876,-500.0,0.0001378,2]
[353836522,1740085841886,-500.0,0.0001378,2]
[353836523,1740085841896,-1401.44,0.0001378,2]
[353836524,1740085841907,-500.0,0.0001378,2]
[353836525,1740085841916,-500.0,0.0001378,2]
[353836526,1740085841925,-569.2,0.0001378,2]
[353836527,1740085841935,-613.73,0.0001378,2]
[353836528,1740085841946,-500.0,0.0001378,2]
[353836529,1740085841956,-500.0,0.0001378,2]
[353836530,1740085841965,-500.0,0.0001378,2]
[353836531,1740085841974,-500.0,0.0001378,2]
[353836532,1740085841984,-2967.35,0.0001378,2]
[353836533,1740085841994,-500.0,0.0001378,2]
[353836534,1740085842003,-500.0,0.0001378,2]
[353836535,1740085842109,-1487.5,0.0001378,2]
[353836536,1740085842120,-5698.36,0.0001378,2]
[353836537,1740085842129,-500.0,0.0001378,2]
[353836538,1740085842140,-300.0,0.000138,4]
[353836539,1740085842149,-194.90542859,0.00013862,2]
[353836540,1740085842159,-500.0,0.00013862,2]
[353836541,1740085842169,-500.0,0.00013862,2]
[353836542,1740085842178,-500.0,0.00013862,2]
[353836543,1740085842188,-500.0,0.00013862,2]
[353836544,1740085842198,-220.79086661,0.00013862,2]
[353836545,1740085842207,-500.0,0.00013862,2]
[353836546,1740085842217,-500.0,0.00013862,2]
[353836547,1740085842227,-500.0,0.00013863,2]
[353836548,1740085842237,-500.0,0.00013863,2]
[353836549,1740085842247,-500.0,0.00013863,2]
[353836550,1740085842257,-500.0,0.00013863,2]
[353836551,1740085842267,-500.0,0.00013863,2]
[353836552,1740085842276,-500.0,0.00013863,2]
[353836553,1740085842286,-500.0,0.00013863,2]
[353836554,1740085842295,-497.4229373,0.00013863,2]
[353836555,1740085842304,-500.0,0.00013863,2]
[353836556,1740085842314,-500.0,0.00013863,2]
[353836557,1740085842324,-500.0,0.00013863,2]
[353836558,1740085842333,-500.0,0.00013863,2]
[353836559,1740085842343,-500.0,0.00013863,2]
[353836560,1740085842352,-500.0,0.00013863,2]
[353836561,1740085842362,-500.0,0.00013863,2]
[353836562,1740085842371,-500.0,0.00013863,2]
[353836563,1740085842379,-902.1,0.00013863,2]
[353836564,1740085842388,-500.0,0.00013863,2]
[353836565,1740085842397,-500.0,0.00013863,2]
[353836566,1740085842407,-500.0,0.00013863,2]
[353836567,1740085842416,-500.0,0.00013863,2]
[353836568,1740085842426,-500.0,0.00013863,2]
[353836569,1740085842435,-500.0,0.00013863,2]
[353836570,1740085842444,-500.0,0.00013863,2]
[353836571,1740085842454,-500.0,0.00013863,2]
[353836572,1740085842464,-630.41,0.00013863,2]
[353836573,1740085842475,-500.0,0.00013863,2]
[353836574,1740085842484,-151.54445184,0.00013863,2]
[353836575,1740085842495,-500.0,0.00013863,2]
[353836576,1740085842504,-500.0,0.00013863,2]
[353836577,1740085842514,-500.0,0.00013863,2]
[353836578,1740085842523,-500.0,0.00013863,2]
[353836579,1740085842533,-500.0,0.00013863,2]
[353836580,1740085842543,-500.0,0.00013863,2]
[353836581,1740085842552,-500.0,0.00013863,2]
[353836582,1740085842562,-408.08520701,0.00013863,2]
[353836583,1740085842572,-294.30096191,0.00013863,2]
[353836584,1740085842581,-772.49,0.00013863,2]
[353836585,1740085842591,-873.43,0.00013863,2]
[353836586,1740085842600,-500.0,0.00013863,2]
[353836587,1740085842610,-500.0,0.00013863,2]
[353836588,1740085842619,-500.0,0.00013863,2]
[353836589,1740085842628,-500.0,0.00013863,2]
[353836590,1740085842637,-500.0,0.00013863,2]
[353836591,1740085842647,-508.27051944,0.00013863,2]
[353836592,1740085842656,-500.0,0.00013863,2]
[353836593,1740085842666,-500.0,0.00013863,2]
[353836594,1740085842677,-500.0,0.00013863,2]
[353836595,1740085842687,-500.0,0.00013863,2]
[353836596,1740085842697,-500.0,0.00013863,2]
[353836597,1740085842707,-761.3,0.00013863,2]
[353836598,1740085842718,-500.0,0.00013863,2]
[353836599,1740085842728,-502.46514565,0.00013863,2]
[353836600,1740085842737,-500.0,0.00013863,2]
[353836601,1740085842747,-166.08861043,0.00013863,2]
[353836602,1740085842757,-561.19,0.00013863,2]
[353836603,1740085842767,-500.0,0.00013863,2]
[353836604,1740085842778,-500.0,0.00013863,2]
[353836605,1740085842788,-500.0,0.00013863,2]
[353836606,1740085842798,-500.0,0.00013863,2]
[353836607,1740085842809,-500.0,0.00013863,2]
[353836608,1740085842819,-518.62,0.00013863,2]
[353836609,1740085842829,-502.98220801,0.00013863,2]
[353836610,1740085842839,-500.0,0.00013863,2]
[353836611,1740085842850,-500.0,0.00013863,2]
[353836612,1740085842863,-500.0,0.00013863,2]
[353836613,1740085842873,-500.0,0.00013863,2]
[353836614,1740085842888,-500.0,0.00013863,2]
[353836615,1740085842898,-500.0,0.00013863,2]
[353836616,1740085842909,-500.0,0.00013863,2]
[353836617,1740085842920,-500.0,0.00013863,2]
[353836618,1740085842929,-500.0,0.00013863,2]
[353836619,1740085842941,-500.0,0.00013863,2]
[353836620,1740085842951,-500.0,0.00013863,2]
[353836621,1740085842961,-12219.87,0.00013863,2]
[353836622,1740085842973,-500.0,0.00013863,2]
[353836623,1740085842983,-3050.27,0.00013863,2]
[353836624,1740085842993,-500.0,0.00013863,2]
[353836625,1740085843002,-771.85,0.00013863,2]
[353836626,1740085843012,-500.0,0.00013863,2]
[353836627,1740085843021,-500.0,0.00013863,2]
[353836628,1740085843034,-500.0,0.00013863,2]
[353836629,1740085843043,-883.99,0.00013863,2]
[353836630,1740085843053,-500.0,0.00013863,2]
[353836631,1740085843063,-546.01,0.00013863,2]
[353836632,1740085843072,-2362.88,0.00013863,2]
[353836633,1740085843081,-500.0,0.00013863,2]
[353836634,1740085843091,-500.0,0.00013863,2]
[353836635,1740085843100,-33637.8,0.00013863,2]
[353836636,1740085843110,-675.8,0.00013863,2]
[353836637,1740085843119,-906.49,0.00013863,2]
[353836638,1740085843129,-500.0,0.00013863,2]
[353836639,1740085843140,-500.0,0.00013863,2]
[353836640,1740085843149,-1881.99,0.00013863,2]
[353836641,1740085843159,-500.0,0.00013863,2]
[353836642,1740085843168,-2460.54,0.00013863,2]
[353836643,1740085843178,-940.83,0.00013863,2]
[353836644,1740085843187,-964.32,0.00013863,2]
[353836645,1740085843197,-5336.19,0.00013863,2]
[353836646,1740085843207,-509.3,0.00013863,2]
[353836647,1740085843218,-500.0,0.00013863,2]
[353836648,1740085843227,-500.0,0.00013863,2]
[353836649,1740085843237,-500.0,0.00013863,2]
[353836650,1740085843246,-500.0,0.00013863,2]
[353836651,1740085843256,-500.0,0.00013863,2]
[353836652,1740085843265,-500.0,0.00013863,2]
[353836653,1740085843274,-500.0,0.00013863,2]
[353836654,1740085843284,-500.0,0.00013863,2]
[353836655,1740085843293,-3128.08,0.00013863,2]
[353836656,1740085843303,-500.0,0.00013863,2]
[353836657,1740085843312,-500.0,0.00013863,2]
[353836658,1740085843321,-500.0,0.00013863,2]
[353836659,1740085843330,-633.67506021,0.00013863,2]
[353836660,1740085843339,-500.0,0.00013863,2]
[353836661,1740085843349,-1818.98,0.00013863,2]
[353836662,1740085843358,-500.0,0.00013863,2]
[353836664,1740085843367,-500.0,0.00013863,2]
[353836665,1740085843376,-500.0,0.00013863,2]
[353836666,1740085843386,-2771.81,0.00013863,2]
[353836667,1740085843395,-1352.82,0.00013863,2]
[353836668,1740085843404,-500.0,0.00013863,2]
[353836669,1740085843413,-500.0,0.00013863,2]
[353836671,1740085843423,-500.0,0.00013863,2]
[353836672,1740085843432,-500.0,0.00013863,2]
[353836673,1740085843441,-1081.46,0.00013863,2]
[353836674,1740085843451,-500.0,0.00013863,2]
[353836675,1740085843459,-846.01,0.00013863,2]
[353836676,1740085843471,-1250.1,0.00013863,2]
[353836678,1740085843480,-500.0,0.00013863,2]
[353836680,1740085843489,-476.16308693,0.00013863,2]
[353836682,1740085843499,-500.0,0.00013863,2]
[353836683,1740085843508,-610.98,0.00013863,2]
[353836684,1740085843518,-500.0,0.00013863,2]
[353836685,1740085843527,-500.0,0.00013863,2]
[353836686,1740085843536,-500.0,0.00013863,2]
[353836687,1740085843546,-500.0,0.00013863,2]
[353836688,1740085843555,-500.0,0.00013863,2]
[353836689,1740085843565,-500.0,0.00013863,2]
[353836690,1740085843575,-500.0,0.00013863,2]
[353836691,1740085843584,-500.0,0.00013863,2]
[353836692,1740085843593,-500.0,0.00013863,2]
[353836693,1740085843602,-500.0,0.00013863,2]
[353836694,1740085843612,-1808.03,0.00013863,2]
[353836695,1740085843621,-597.65,0.00013863,2]
[353836696,1740085843631,-4790.23,0.00013863,2]
[353836697,1740085843640,-1090.83,0.00013863,2]
[353836698,1740085843649,-500.0,0.00013863,2]
[353836699,1740085843659,-500.0,0.00013863,2]
[353836700,1740085843668,-500.0,0.00013863,2]
[353836701,1740085843678,-12831.87,0.00013863,2]
[353836702,1740085843687,-500.0,0.00013863,2]
[353836703,1740085843697,-500.0,0.00013863,2]
[353836704,1740085843706,-502.24315677,0.00013863,2]
[353836705,1740085843717,-506.38,0.00013863,2]
[353836706,1740085843726,-500.0,0.00013863,2]
[353836707,1740085843736,-1483.65,0.00013863,2]
[353836708,1740085843746,-1767.81,0.00013863,2]
[353836709,1740085843756,-569.05175497,0.00013863,2]
[353836710,1740085843765,-500.0,0.00013863,2]
[353836711,1740085843774,-1401.44,0.00013863,2]
[353836712,1740085843784,-500.0,0.00013863,2]
[353836713,1740085843793,-500.0,0.00013863,2]
[353836714,1740085843802,-569.2,0.00013863,2]
[353836715,1740085843811,-613.73,0.00013863,2]
[353836716,1740085843820,-500.0,0.00013863,2]
[353836717,1740085843829,-500.0,0.00013863,2]
[353836718,1740085843839,-500.0,0.00013863,2]
[353836719,1740085843849,-500.0,0.00013863,2]
[353836720,1740085843860,-2967.35,0.00013863,2]
[353836721,1740085843871,-500.0,0.00013863,2]
[353836722,1740085843880,-500.0,0.00013863,2]
[353836723,1740085843890,-1487.5,0.00013863,2]
[353836724,1740085843900,-5698.36,0.00013863,2]
[353836725,1740085843910,-500.0,0.00013863,2]
[353836726,1740085843920,-396.0,0.00013872,2]
[353836727,1740085843929,-151.0,0.000139,2]
[353836728,1740085843940,-151.0,0.000139,2]
[353836729,1740085843949,-500.0,0.00013945,2]
[353836730,1740085843959,-500.0,0.00013945,2]
[353836731,1740085843968,-500.0,0.00013945,2]
[353836732,1740085843978,-500.0,0.00013945,2]
[353836733,1740085843987,-500.0,0.00013945,2]
[353836734,1740085843997,-500.0,0.00013945,2]
[353836735,1740085844007,-500.0,0.00013945,2]
[353836736,1740085844017,-500.0,0.00013945,2]
[353836737,1740085844026,-502.48918186,0.00013945,2]
[353836738,1740085844036,-500.0,0.00013945,2]
[353836739,1740085844045,-500.0,0.00013945,2]
[353836740,1740085844055,-500.0,0.00013945,2]
[353836741,1740085844064,-500.0,0.00013945,2]
[353836742,1740085844073,-500.0,0.00013945,2]
[353836743,1740085844082,-902.1,0.00013945,2]
[353836744,1740085844092,-500.0,0.00013945,2]
[353836745,1740085844102,-500.0,0.00013945,2]
[353836746,1740085844111,-500.0,0.00013945,2]
[353836747,1740085844121,-500.0,0.00013945,2]
[353836748,1740085844130,-500.0,0.00013945,2]
[353836749,1740085844139,-500.0,0.00013945,2]
[353836750,1740085844149,-500.0,0.00013945,2]
[353836751,1740085844159,-500.0,0.00013945,2]
[353836752,1740085844168,-630.41,0.00013945,2]
[353836753,1740085844177,-500.0,0.00013945,2]
[353836754,1740085844187,-500.0,0.00013945,2]
[353836755,1740085844197,-500.0,0.00013945,2]
[353836756,1740085844207,-500.0,0.00013945,2]
[353836757,1740085844217,-503.35401563,0.00013945,2]
[353836758,1740085844227,-500.0,0.00013945,2]
[353836759,1740085844236,-500.0,0.00013945,2]
[353836760,1740085844245,-772.49,0.00013945,2]
[353836761,1740085844255,-873.43,0.00013945,2]
[353836762,1740085844264,-500.0,0.00013945,2]
[353836763,1740085844273,-229.88966648,0.00013945,2]
[353836764,1740085844282,-500.0,0.00013945,2]
[353836765,1740085844291,-500.0,0.00013945,2]
[353836766,1740085844301,-500.0,0.00013945,2]
[353836767,1740085844310,-500.0,0.00013945,2]
[353836768,1740085844320,-500.0,0.00013945,2]
[353836769,1740085844330,-500.0,0.00013945,2]
[353836770,1740085844339,-500.0,0.00013945,2]
[353836771,1740085844348,-500.0,0.00013945,2]
[353836772,1740085844358,-761.3,0.00013945,2]